bitfinex/quotes_ETHUSD_20250420
["timestamp","ask_amount","ask_price","bid_price","bid_amount"]
[1745129288256,6.21104,1610.1,1609.8,0.06211074]
[1745129289484,6.21119658,1610.0,1609.8,0.45502929]
[1745129289670,6.21119658,1610.0,1609.7,3.7538]
[1745129293692,6.21157283,1609.9,1609.7,3.7538]
[1745129294063,6.21157283,1609.9,1609.7,4.22995871]
[1745129294373,6.21119658,1610.0,1609.7,4.22995871]
[1745129295199,12.42265979,1610.0,1609.7,4.22995871]
[1745129295369,12.42268375,1610.0,1609.7,4.22995871]
[1745129296076,6.21119658,1610.0,1609.7,4.22995871]
[1745129300998,6.21158088,1609.9,1609.7,4.22995871]
[1745129302041,6.21119658,1610.0,1609.7,4.22995871]
[1745129302175,6.21159025,1609.9,1609.7,4.22995871]
[1745129302578,6.21159025,1609.9,1609.7,3.47615871]
[1745129302993,12.42348603,1609.9,1609.7,3.47615871]
[1745129303503,6.21159025,1609.9,1609.7,3.47615871]
[1745129305009,7.03165179,1609.8,1609.7,3.47615871]
[1745129305302,7.03165179,1609.8,1609.7,3.0]
[1745129305877,6.2123377,1609.7,1609.6,58.328]
[1745129306402,6.2123377,1609.7,1609.6,61.328]
[1745129307026,6.2123377,1609.7,1609.6,58.328]
[1745129307214,6.2123377,1609.7,1609.6,61.328]
[1745129312315,6.2123377,1609.7,1609.6,8.107]
[1745129317228,6.21226468,1609.8,1609.6,8.8577]
[1745129317455,6.21226468,1609.8,1609.7,3.0]
[1745129322636,12.4236816,1609.9,1609.7,3.0]
[1745129322997,6.21143729,1610.0,1609.8,1.69566263]
[1745129323735,6.21156593,1609.9,1609.8,1.69566263]
[1745129323946,6.21156593,1609.9,1609.7,3.0]
[1745129324096,6.21195179,1609.8,1609.7,3.0]
[1745129336350,13.2507612,1609.9,1609.7,3.0]
[1745129336687,6.21156593,1609.9,1609.7,3.0]
[1745129336891,12.42342101,1609.9,1609.7,3.0]
[1745129337063,6.21156593,1609.9,1609.7,3.0]
[1745129337254,12.42343082,1609.9,1609.7,3.0]
[1745129337761,6.21195179,1609.8,1609.7,3.0]
[1745129338497,6.21156593,1609.9,1609.7,3.0]
[1745129338654,12.42344966,1609.9,1609.7,3.0]
[1745129339146,6.21156593,1609.9,1609.7,3.0]
[1745129339351,12.42344397,1609.9,1609.7,3.0]
[1745129339614,12.42344262,1609.9,1609.7,3.0]
[1745129339788,6.21156593,1609.9,1609.7,3.0]
[1745129340355,12.42340729,1609.9,1609.7,3.0]
[1745129340555,6.21195179,1609.8,1609.7,3.0]
[1745129341692,7.03868308,1610.0,1609.7,3.813]
[1745129341865,6.21171336,1609.9,1609.7,3.813]
[1745129342800,6.21171336,1609.9,1609.8,8.123]
[1745129342801,7.03551336,1609.9,1609.8,8.123]
[1745129354218,6.21171336,1609.9,1609.8,8.123]
[1745129374323,8.26971996,1609.9,1609.8,5.123]
[1745129381269,7.02741336,1609.9,1609.8,5.123]
[1745129396805,6.21171336,1609.9,1609.8,5.123]
[1745129449891,6.21171336,1609.9,1609.8,8.123]
[1745129450890,6.21096152,1610.1,1609.9,3.7719]
[1745129451081,6.21068036,1610.2,1609.9,5.5296692]
[1745129451281,6.21068036,1610.2,1610.0,0.7719]
[1745129452692,6.21021308,1610.3,1610.2,0.7719]
[1745129452880,6.21021308,1610.3,1610.2,5.8549]
[1745129453064,6.21021308,1610.3,1610.2,8.8549]
[1745129454092,6.21021308,1610.3,1610.2,9.3131532]
[1745129456217,6.21021308,1610.3,1610.2,8.5412532]
[1745129458199,7.46221387,1610.3,1610.2,8.083]
[1745129458576,8.23631387,1610.3,1610.2,8.083]
[1745129459467,6.98431308,1610.3,1610.2,8.083]
[1745129469406,6.21021308,1610.3,1610.2,8.083]
[1745129486607,6.96961308,1610.3,1610.2,8.083]
[1745129497450,6.21156593,1609.9,1609.8,56.21]
[1745129497616,6.21156593,1609.9,1609.8,58.291]
[1745129497951,6.21156593,1609.9,1609.8,61.291]
[1745129500651,6.21156593,1609.9,1609.8,56.21]
[1745129500832,6.21156593,1609.9,1609.8,61.292]
[1745129504259,8.28265762,1609.9,1609.8,58.292]
[1745129505551,14.35265762,1609.9,1609.8,58.292]
[1745129506267,14.35265762,1609.9,1609.8,5.082]
[1745129524287,12.28156593,1609.9,1609.8,5.082]
[1745129528505,12.28156593,1609.9,1609.8,5.8341]
[1745129529070,6.21156593,1609.9,1609.8,5.8341]
[1745129532183,6.21156593,1609.9,1609.8,8.8341]
[1745129533913,6.21135093,1610.0,1609.9,0.8102]
[1745129535414,6.21093623,1610.1,1609.9,5.15943384]
[1745129535577,6.21058618,1610.2,1610.0,0.8102]
[1745129536482,6.21079436,1610.1,1610.0,0.8102]
[1745129537286,6.21075719,1610.2,1610.0,0.8102]
[1745129537493,6.21079436,1610.1,1610.0,0.8102]
[1745129537787,6.21074402,1610.2,1610.0,0.8102]
[1745129537997,6.21075643,1610.2,1610.0,0.8102]
[1745129539523,6.21020876,1610.3,1610.0,0.8102]
[1745129539690,12.42052827,1610.3,1610.0,0.8102]
[1745129539890,6.21020876,1610.3,1610.0,0.8102]
[1745129540230,12.42053278,1610.3,1610.0,0.8102]
[1745129540393,12.42054027,1610.3,1610.0,0.8102]
[1745129540729,6.21020876,1610.3,1610.0,0.8102]
[1745129541319,12.42058157,1610.3,1610.0,0.8102]
[1745129541512,6.21020876,1610.3,1610.0,0.8102]
[1745129541711,12.42055007,1610.3,1610.0,0.8102]
[1745129542010,6.21020876,1610.3,1610.0,0.8102]
[1745129542228,6.21020876,1610.3,1610.1,1.69566263]
[1745129542394,6.21020876,1610.3,1610.2,8.8312]
[1745129543089,6.30989534,1610.4,1610.2,8.8312]
[1745129543330,12.51981204,1610.4,1610.2,8.8312]
[1745129544250,0.1,1610.4,1610.3,4.69566263]
[1745129544389,0.1,1610.4,1610.3,5.50616263]
[1745129544590,0.1,1610.4,1610.3,7.36916952]
[1745129545030,0.1,1610.4,1610.3,5.50616263]
[1745129545736,0.1,1610.4,1610.3,7.43126017]
[1745129546531,0.1,1610.4,1610.3,15.8069228]
[1745129546695,0.1,1610.4,1610.3,15.74483215]
[1745129547210,0.1,1610.4,1610.3,14.04916952]
[1745129549027,0.1,1610.4,1610.3,13.49916952]
[1745129558251,7.02197217,1610.8,1610.4,0.55]
[1745129558408,13.23034712,1610.8,1610.5,4.69566263]
[1745129558608,7.02197217,1610.8,1610.7,3.0]
[1745129565537,6.20827217,1610.8,1610.7,3.0]
[1745129565739,6.20848078,1610.7,1610.6,5.079]
[1745129566043,6.98548078,1610.7,1610.6,5.079]
[1745129566246,6.98548078,1610.7,1610.4,1.69566263]
[1745129566247,6.20963735,1610.4,1610.2,54.90466263]
[1745129566433,6.20963735,1610.4,1610.3,8.084]
[1745129566635,6.20963735,1610.4,1610.3,5.084]
[1745129566842,6.98663735,1610.4,1610.3,8.084]
[1745129571362,6.20963735,1610.4,1610.3,8.084]
[1745129597934,6.21118012,1610.0,1609.9,59.331]
[1745129598097,6.21118012,1610.0,1609.9,58.284]
[1745129598727,6.21118012,1610.0,1609.9,61.284]
[1745129600845,7.01158012,1610.0,1609.9,58.284]
[1745129601139,8.33383433,1610.0,1609.9,58.284]
[1745129603417,14.40383433,1610.0,1609.9,58.284]
[1745129603615,14.40383433,1610.0,1609.9,53.201]
[1745129604355,7.00736593,1609.9,1609.8,5.083]
[1745129611068,13.07736593,1609.9,1609.8,5.083]
[1745129611265,15.13844596,1609.9,1609.8,5.083]
[1745129614279,6.21349571,1609.4,1609.3,3.85512747]
[1745129614480,6.21349571,1609.4,1609.3,8.878]
[1745129620090,12.42673082,1609.5,1609.3,12.55179685]
[1745129620782,6.21349571,1609.4,1609.3,12.55179685]
[1745129621381,6.21327627,1609.5,1609.3,12.55179685]
[1745129621691,6.21285392,1609.6,1609.3,12.55179685]
[1745129621861,6.21312691,1609.5,1609.3,12.55179685]
[1745129627474,6.21312691,1609.5,1609.4,5.086]
[1745129629198,6.21312691,1609.5,1609.4,6.78158866]
[1745129630114,6.21298583,1609.6,1609.5,3.0]
[1745129632313,6.21298583,1609.6,1609.5,8.086]
[1745129633619,6.21298583,1609.6,1609.5,8.9168]
[1745129635919,6.21298583,1609.6,1609.5,8.086]
[1745129638122,6.98188583,1609.6,1609.5,8.086]
[1745129643900,6.21298583,1609.6,1609.5,8.086]
[1745129646730,7.53242538,1609.6,1609.5,8.086]
[1745129647034,6.21298583,1609.6,1609.5,8.086]
[1745129659560,6.21298583,1609.6,1609.5,3.0]
[1745129659733,6.21298583,1609.6,1609.5,8.083]
[1745129663877,6.21298583,1609.6,1609.5,5.083]
[1745129670666,12.28298583,1609.6,1609.5,5.083]
[1745129670866,14.20942538,1609.6,1609.5,5.083]
[1745129674953,15.01542538,1609.6,1609.5,5.083]
[1745129675161,6.21426795,1609.2,1609.1,56.227]
[1745129675361,6.21426795,1609.2,1609.1,58.31]
[1745129675697,6.21426795,1609.2,1609.1,61.31]
[1745129679156,6.21426795,1609.2,1609.1,58.31]
[1745129681696,7.53769989,1609.2,1609.1,58.31]
[1745129683267,7.53769989,1609.2,1609.1,53.227]
[1745129683598,7.53769989,1609.2,1609.1,58.311]
[1745129687588,6.21426795,1609.2,1609.1,58.311]
[1745129691091,6.21426795,1609.2,1609.1,5.084]
[1745129693207,6.21504039,1609.0,1608.9,3.0]
[1745129693401,6.21504039,1609.0,1608.9,8.084]
[1745129695311,6.21504039,1609.0,1608.9,8.8798]
[1745129695909,6.21504039,1609.0,1608.9,8.084]
[1745129696279,6.21504039,1609.0,1608.9,5.084]
[1745129696504,7.54088717,1609.0,1608.9,5.084]
[1745129697417,7.54088717,1609.0,1608.5,1e-08]
[1745129697418,0.8286,1608.7,1608.5,1e-08]
[1745129697580,6.21658585,1608.6,1608.5,1e-08]
[1745129705122,7.04518585,1608.6,1608.5,1e-08]
[1745129707924,13.11518585,1608.6,1608.5,1e-08]
[1745129708108,15.21789945,1608.6,1608.5,1e-08]
[1745129744460,15.76789945,1608.6,1608.5,1e-08]
[1745129749781,14.38929945,1608.6,1608.5,1e-08]
[1745129749953,12.28658585,1608.6,1608.5,1e-08]
[1745129752976,12.28658585,1608.6,1608.5,0.79550001]
[1745129760209,12.28658585,1608.6,1608.5,5.90950001]
[1745129763603,6.21658585,1608.6,1608.5,5.90950001]
[1745129770358,12.83658585,1608.6,1608.5,1e-08]
[1745129770620,6.21813207,1608.2,1608.1,0.1]
[1745129781123,12.28813207,1608.2,1608.1,0.1]
[1745129799014,13.64323207,1608.2,1608.1,1e-08]
[1745129799187,20.49449405,1608.2,1608.1,1e-08]
[1745129802605,20.81820233,1608.2,1608.1,1e-08]
[1745129803593,21.27814269,1608.2,1608.1,1e-08]
[1745129803992,20.95443441,1608.2,1608.1,1e-08]
[1745129804595,6.22006593,1607.7,1607.6,5.139]
[1745129804795,12.29006592,1607.7,1607.6,5.139]
[1745129806625,12.29006592,1607.7,1607.6,5.9611]
[1745129825335,14.14105687,1607.7,1607.6,5.139]
[1745129826539,6.22083981,1607.5,1607.4,0.7739]
[1745129826835,6.22083981,1607.5,1607.4,5.9439]
[1745129833652,6.22083981,1607.5,1607.4,5.17]
[1745129847688,6.22083981,1607.5,1607.4,5.9544]
[1745129863305,6.22027796,1607.7,1607.5,3.826]
[1745129863601,6.22035851,1607.7,1607.6,0.826]
[1745129865907,6.21984906,1607.8,1607.6,0.826]
[1745129866501,6.21984906,1607.8,1607.7,2.52158866]
[1745129867212,6.21984906,1607.8,1607.7,2.97669467]
[1745129869714,6.21984906,1607.8,1607.7,1.28110601]
[1745129869883,6.21984906,1607.8,1607.7,0.826]
[1745129870198,6.22030344,1607.7,1607.6,0.7674]
[1745129871177,6.22030344,1607.7,1607.6,1.2225526]
[1745129872324,6.21986628,1607.8,1607.6,1.2225526]
[1745129872990,12.43984121,1607.8,1607.6,1.2225526]
[1745129873492,6.21986628,1607.8,1607.6,1.2225526]
[1745129874213,12.4398444,1607.8,1607.6,1.2225526]
[1745129874414,6.22006593,1607.7,1607.6,1.2225526]
[1745129874618,6.21986628,1607.8,1607.7,0.8198]
[1745129874913,6.21986628,1607.8,1607.7,2.51538866]
[1745129876386,6.21986628,1607.8,1607.7,0.8198]
[1745129880091,6.21986628,1607.8,1607.7,0.7698]
[1745129881388,6.22006593,1607.7,1607.6,0.46144169]
[1745129881705,6.22006593,1607.7,1607.5,4.69558866]
[1745129882627,6.21991268,1607.8,1607.5,4.69558866]
[1745129883128,6.21991268,1607.8,1607.6,0.8256]
[1745129884640,6.21941026,1607.9,1607.6,0.8256]
[1745129885742,6.21913382,1608.0,1607.8,3.8256]
[1745129886046,12.4373847,1608.1,1607.9,9.82258866]
[1745129886212,6.21857048,1608.1,1607.9,9.82258866]
[1745129887097,6.21890547,1608.0,1607.9,9.82258866]
[1745129891645,6.21890547,1608.0,1607.9,8.127]
[1745129891803,8.28275306,1608.0,1607.9,8.127]
[1745129902617,7.03900547,1608.0,1607.9,8.127]
[1745129909435,6.21890547,1608.0,1607.9,8.127]
[1745129915265,6.21890547,1608.0,1607.3,6.13]
[1745129915266,6.21946677,1607.9,1607.3,6.13]
[1745129915569,6.2210869,1607.5,1607.4,8.116]
[1745129924668,6.2210869,1607.5,1607.4,9.81158866]
[1745129925287,6.22045284,1607.6,1607.4,9.81158866]
[1745129925608,6.22045284,1607.6,1607.5,0.7791]
[1745129931086,6.22045284,1607.6,1607.5,3.7791]
[1745129932154,6.22045284,1607.6,1607.5,3.0]
[1745129933292,6.22031239,1607.7,1607.6,0.7504]
[1745129933453,6.22031239,1607.7,1607.6,2.44598866]
[1745129933653,6.21988403,1607.8,1607.6,2.44598866]
[1745129933854,6.22006593,1607.7,1607.6,2.44598866]
[1745129940407,6.22006593,1607.7,1607.6,0.7504]
[1745129941092,6.22006593,1607.7,1607.5,5.49538866]
[1745129941281,12.44043375,1607.7,1607.5,5.49538866]
[1745129941483,6.22006593,1607.7,1607.5,5.49538866]
[1745129943069,6.22006593,1607.7,1607.5,4.69558866]
[1745129943908,6.22045284,1607.6,1607.5,4.69558866]
[1745129947910,6.22045284,1607.6,1607.5,3.0]
[1745129948133,7.46450472,1607.6,1607.5,3.0]
[1745129948302,8.29370472,1607.6,1607.5,3.0]
[1745129949001,7.46450472,1607.6,1607.5,3.0]
[1745129949175,6.22045284,1607.6,1607.5,3.0]
[1745129957737,6.22045284,1607.6,1607.5,4.69558866]
[1745129959118,6.22045284,1607.6,1607.5,9.81158866]
[1745129964235,6.22006593,1607.7,1607.5,9.81158866]
[1745129964832,13.27256804,1607.7,1607.5,8.116]
[1745129966035,6.22006593,1607.7,1607.5,8.116]
[1745129967339,6.22006593,1607.7,1607.5,8.9409]
[1745129968747,6.22006593,1607.7,1607.6,5.1]
[1745129971622,6.22006593,1607.7,1607.6,8.1]
[1745129972038,6.21991244,1607.8,1607.7,3.0]
[1745129977257,6.22006593,1607.7,1607.6,5.1]
[1745129980948,7.03641244,1607.8,1607.6,5.1]
[1745129981147,13.2564146,1607.8,1607.6,5.1]
[1745129981999,6.22006593,1607.7,1607.6,5.1]
[1745129988801,7.03641244,1607.8,1607.7,3.0]
[1745129988971,6.21991244,1607.8,1607.7,5.1]
[1745130001129,6.21991244,1607.8,1607.7,8.1]
[1745130002459,7.04381244,1607.8,1607.7,8.1]
[1745130012498,8.37014443,1607.8,1607.7,8.1]
[1745130018208,8.37014443,1607.8,1607.7,5.1]
[1745130018905,6.22045284,1607.6,1607.4,4.69558866]
[1745130019203,6.22045284,1607.6,1607.5,5.094]
[1745130020410,6.22045284,1607.6,1607.5,8.094]
[1745130026994,7.01945284,1607.6,1607.5,8.094]
[1745130027203,8.34342203,1607.6,1607.5,5.094]
[1745130035855,6.22354991,1606.8,1606.7,0.3955674]
[1745130036010,7.04994991,1606.8,1606.7,0.3955674]
[1745130037441,7.04994991,1606.8,1606.7,5.4905674]
[1745130059290,6.22354991,1606.8,1606.7,6.3198674]
[1745130063086,6.22136273,1607.4,1606.9,2.64420827]
[1745130063286,6.22180785,1607.3,1607.1,4.69558866]
[1745130063605,6.22180785,1607.3,1607.2,5.123]
[1745130063896,6.22180785,1607.3,1607.2,5.9003]
[1745130064794,6.22180785,1607.3,1607.2,8.9003]
[1745130066925,6.22180785,1607.3,1607.2,8.123]
[1745130069321,7.4661273,1607.3,1607.2,8.123]
[1745130073390,8.2530273,1607.3,1607.2,5.123]
[1745130074438,14.32302729,1607.3,1607.2,5.123]
[1745130080541,13.53612729,1607.3,1607.2,5.123]
[1745130080704,12.29180784,1607.3,1607.2,5.123]
[1745130086144,6.22180785,1607.3,1607.2,5.123]
[1745130094468,6.99240785,1607.3,1607.2,5.123]
[1745130096531,6.22180785,1607.3,1607.2,5.123]
[1745130106177,6.22180785,1607.3,1607.2,5.9111]
[1745130109272,6.22180785,1607.3,1607.2,5.123]
[1745130109477,7.4661273,1607.3,1607.2,5.123]
[1745130118394,6.22138669,1607.4,1607.2,5.123]
[1745130118689,6.22138669,1607.4,1607.2,8.8862]
[1745130118895,6.22138669,1607.4,1607.3,3.0]
[1745130124217,6.89209999,1607.6,1607.3,4.69558866]
[1745130124500,6.22073524,1607.6,1607.4,0.7701]
[1745130127802,12.44150368,1607.6,1607.4,0.7701]
[1745130128003,6.22083981,1607.5,1607.4,0.7701]
[1745130129410,6.22067578,1607.6,1607.4,0.7701]
[1745130134402,12.44142104,1607.6,1607.4,0.7701]
[1745130134723,6.22067578,1607.6,1607.4,0.7701]
[1745130138127,6.22067578,1607.6,1607.5,8.111]
[1745130141738,6.22067578,1607.6,1607.5,3.0]
[1745130141915,6.22067578,1607.6,1607.5,8.111]
[1745130143335,6.22028302,1607.7,1607.5,8.111]
[1745130145041,6.22045284,1607.6,1607.5,8.111]
[1745130145244,6.22028302,1607.7,1607.5,8.111]
[1745130145742,6.22028302,1607.7,1607.6,3.0]
[1745130146440,6.06999999,1608.1,1607.6,3.8008]
[1745130146645,6.21945781,1607.9,1607.7,1.69558866]
[1745130150050,6.21951849,1607.9,1607.7,1.69558866]
[1745130151343,6.21967906,1607.8,1607.7,1.69558866]
[1745130151649,6.21951849,1607.9,1607.7,1.69558866]
[1745130151650,6.21949556,1607.9,1607.7,1.69558866]
[1745130153651,12.43912963,1607.9,1607.7,1.69558866]
[1745130154036,6.21967906,1607.8,1607.6,3.8008]
[1745130154837,6.22006593,1607.7,1607.6,3.0]
[1745130162567,6.21967906,1607.8,1607.6,3.0]
[1745130163070,12.43972115,1607.8,1607.6,3.0]
[1745130163666,6.21967906,1607.8,1607.6,3.0]
[1745130165558,6.21967906,1607.8,1607.7,8.103]
[1745130167264,12.4390729,1607.9,1607.7,8.103]
[1745130169379,6.21944973,1607.9,1607.7,8.9206]
[1745130169561,12.43904022,1607.9,1607.7,8.9206]
[1745130170531,6.21944973,1607.9,1607.7,8.9206]
[1745130171765,6.21944973,1607.9,1607.7,10.61618866]
[1745130174276,12.43907682,1607.9,1607.7,10.61618866]
[1745130174478,6.21944973,1607.9,1607.7,10.61618866]
[1745130175150,12.43904913,1607.9,1607.7,10.61618866]
[1745130175350,12.43904321,1607.9,1607.7,10.61618866]
[1745130176273,6.21967906,1607.8,1607.7,10.61618866]
[1745130176474,6.21967906,1607.8,1607.7,8.9206]
[1745130178598,6.21967906,1607.8,1607.7,8.103]
[1745130180991,6.21944973,1607.9,1607.7,8.9133]
[1745130181156,6.21967906,1607.8,1607.7,8.9133]
[1745130181677,6.21967906,1607.8,1607.7,8.103]
[1745130181884,8.25979194,1607.8,1607.7,8.103]
[1745130182451,7.46359194,1607.8,1607.7,8.103]
[1745130185996,6.22122682,1607.4,1607.3,62.39868405]
[1745130186193,6.22122682,1607.4,1607.3,58.39]
[1745130186365,6.22122682,1607.4,1607.3,61.39]
[1745130187399,6.22122682,1607.4,1607.3,58.39]
[1745130187692,6.22122682,1607.4,1607.3,61.39]
[1745130189256,6.22122682,1607.4,1607.3,56.29]
[1745130189595,8.34127032,1607.4,1607.3,58.391]
[1745130190311,6.22277535,1607.0,1606.9,1.69558866]
[1745130190515,6.22277535,1607.0,1606.9,6.79658866]
[1745130190718,6.22277535,1607.0,1606.9,9.79658866]
[1745130191075,6.22277535,1607.0,1606.9,7.1121878]
[1745130191590,6.22277535,1607.0,1606.9,10.1121878]
[1745130199404,6.22277535,1607.0,1606.9,8.102]
[1745130199600,7.01437535,1607.0,1606.9,8.102]
[1745130201537,6.22277535,1607.0,1606.9,8.102]
[1745130201831,6.22277535,1607.0,1606.9,9.79758866]
[1745130203835,6.22277535,1607.0,1606.9,8.102]
[1745130204033,7.46730808,1607.0,1606.9,8.102]
[1745130207536,7.46730808,1607.0,1606.7,56.19445606]
[1745130207835,7.46730808,1607.0,1606.7,58.7915674]
[1745130207836,6.22354991,1606.8,1606.7,58.7915674]
[1745130209438,6.99204991,1606.8,1606.7,58.7915674]
[1745130210531,6.22354991,1606.8,1606.7,58.7915674]
[1745130211226,6.22354991,1606.8,1606.7,5.4985674]
[1745130237783,6.2233351,1606.9,1606.7,6.35970511]
[1745130238078,6.2233351,1606.9,1606.8,5.47828866]
[1745130245749,6.2233351,1606.9,1606.8,3.0]
[1745130247748,6.2233351,1606.9,1606.8,3.7537]
[1745130250649,6.2233351,1606.9,1606.8,3.81593013]
[1745130251678,6.2233351,1606.9,1606.8,5.51151879]
[1745130253176,6.2233351,1606.9,1606.8,5.44928866]
[1745130255782,6.2233351,1606.9,1606.8,3.0]
[1745130262851,6.22354991,1606.8,1606.7,5.4985674]
[1745130263177,6.98724991,1606.8,1606.7,8.4985674]
[1745130264491,6.98724991,1606.8,1606.7,5.4985674]
[1745130268605,6.98724991,1606.8,1606.7,7.19415606]
[1745130275111,6.2247121,1606.5,1606.2,0.30373742]
[1745130275324,6.22587473,1606.2,1605.8,61.28641015]
[1745130275625,6.98173779,1605.9,1605.8,61.28641015]
[1745130275915,6.98173779,1605.9,1605.8,69.38741015]
[1745130276111,6.98173779,1605.9,1605.8,66.38741015]
[1745130276318,6.22820129,1605.6,1605.5,9.21500187]
[1745130276813,6.22820129,1605.6,1605.5,17.34800187]
[1745130277018,6.22820129,1605.6,1605.5,12.21500187]
[1745130277217,6.22820129,1605.6,1605.3,10.30051695]
[1745130277218,8.22851854,1605.6,1605.3,10.30051695]
[1745130277393,6.2289772,1605.4,1605.3,10.30051695]
[1745130277818,6.2289772,1605.4,1605.3,15.43351695]
[1745130278323,6.2289772,1605.4,1605.3,10.30051695]
[1745130278533,7.55020384,1605.4,1605.3,15.43351695]
[1745130279116,6.2289772,1605.4,1605.3,18.43351695]
[1745130279601,6.2289772,1605.4,1605.3,18.43451695]
[1745130280910,6.2289772,1605.4,1605.3,8.134]
[1745130281414,6.22880312,1605.5,1605.4,3.0]
[1745130281619,6.22858922,1605.5,1605.4,3.0]
[1745130282488,6.22858922,1605.5,1605.3,8.82620776]
[1745130282489,6.2289772,1605.4,1605.3,6.69220776]
[1745130282816,6.2289772,1605.4,1605.3,11.82720776]
[1745130283117,6.22801848,1605.7,1605.3,12.62680776]
[1745130283325,6.22858922,1605.5,1605.4,5.135]
[1745130284317,6.2289772,1605.4,1605.3,3.0]
[1745130284505,6.2289772,1605.4,1605.3,8.136]
[1745130286717,6.22936522,1605.3,1605.1,54.6341674]
[1745130286919,6.2297533,1605.2,1605.1,54.6341674]
[1745130287084,6.2297533,1605.2,1605.1,62.7701674]
[1745130288215,6.2297533,1605.2,1605.1,57.6341674]
[1745130288421,6.2297533,1605.2,1605.1,62.7701674]
[1745130288727,6.2297533,1605.2,1605.1,62.7861674]
[1745130289296,6.2297533,1605.2,1605.1,56.8505674]
[1745130289496,6.2297533,1605.2,1605.1,61.9865674]
[1745130289797,6.2297533,1605.2,1605.1,56.8505674]
[1745130290027,6.2297533,1605.2,1605.1,61.9865674]
[1745130290722,6.2297533,1605.2,1605.1,56.8505674]
[1745130291246,6.23247117,1604.5,1604.4,0.005]
[1745130291541,6.231722,1604.7,1604.4,62.19320776]
[1745130291745,6.231722,1604.7,1604.6,3.69220776]
[1745130292145,6.23216953,1604.6,1604.4,53.365]
[1745130292322,6.23247117,1604.5,1604.4,57.05720776]
[1745130292507,6.23216953,1604.6,1604.4,62.42420776]
[1745130292705,6.23247117,1604.5,1604.4,62.42420776]
[1745130292920,6.23247117,1604.5,1604.4,65.42420776]
[1745130293213,6.23208276,1604.6,1604.5,3.0]
[1745130293781,6.23194326,1604.7,1604.5,3.0]
[1745130294050,12.46396336,1604.7,1604.5,3.0]
[1745130294214,12.46392691,1604.7,1604.5,3.0]
[1745130294409,6.23194326,1604.7,1604.5,3.0]
[1745130294836,6.23194326,1604.7,1604.6,3.69220776]
[1745130295033,6.23145717,1604.8,1604.6,6.69220776]
[1745130295232,6.23145717,1604.8,1604.6,7.51660776]
[1745130295651,6.23118721,1604.9,1604.6,7.51660776]
[1745130295950,6.23039663,1605.1,1604.8,3.69220776]
[1745130296128,6.2299827,1605.2,1605.0,6.69220776]
[1745130296448,6.22953239,1605.3,1605.0,7.15862114]
[1745130297155,6.22975436,1605.2,1605.0,7.15862114]
[1745130300359,6.22960411,1605.3,1605.0,7.15862114]
[1745130300519,6.22979042,1605.2,1605.0,7.15862114]
[1745130302260,6.23014142,1605.1,1605.0,3.46641338]
[1745130302459,6.23014142,1605.1,1605.0,8.83441338]
[1745130303425,6.22979042,1605.2,1605.0,8.83441338]
[1745130303966,12.45989275,1605.2,1605.0,8.83441338]
[1745130304467,6.22918898,1605.4,1605.0,8.89671256]
[1745130304761,6.22918898,1605.4,1605.0,8.83441338]
[1745130304933,6.22918898,1605.4,1605.0,10.70356388]
[1745130305233,6.22936801,1605.3,1605.0,8.83441338]
[1745130305433,12.45908598,1605.3,1605.0,8.87356105]
[1745130305634,6.22936801,1605.3,1605.0,8.87356105]
[1745130305961,6.22936801,1605.3,1605.0,14.43492415]
[1745130306268,6.22873068,1605.5,1605.2,4.49540776]
[1745130306467,6.22873068,1605.5,1605.2,57.86740776]
[1745130308473,12.45764823,1605.5,1605.2,57.86740776]
[1745130308833,6.22873068,1605.5,1605.2,57.86740776]
[1745130308991,12.45763357,1605.5,1605.2,57.86740776]
[1745130309699,6.22900718,1605.4,1605.2,57.86740776]
[1745130310292,12.45762949,1605.5,1605.2,57.86740776]
[1745130310497,6.22873068,1605.5,1605.2,57.86740776]
[1745130310980,6.22873068,1605.5,1605.3,5.368]
[1745130312493,6.2289772,1605.4,1605.3,5.368]
[1745130312845,6.22873068,1605.5,1605.3,5.368]
[1745130313181,6.2289772,1605.4,1605.3,5.368]
[1745130313880,12.45765002,1605.5,1605.3,5.368]
[1745130314380,6.2289772,1605.4,1605.3,5.368]
[1745130314880,6.22873068,1605.5,1605.3,5.368]
[1745130315181,6.2289772,1605.4,1605.3,5.368]
[1745130318381,6.2289772,1605.4,1605.3,8.368]
[1745130323683,7.55214799,1605.4,1605.3,8.32]
[1745130323901,8.34024799,1605.4,1605.3,8.32]
[1745130326861,6.2289772,1605.4,1605.3,8.32]
[1745130334400,6.22873068,1605.5,1605.3,9.1009]
[1745130336012,6.22873068,1605.5,1605.3,8.32]
[1745130343513,1.8523134,1606.0,1605.4,3.7809]
[1745130343678,7.02630407,1606.1,1605.7,8.56050233]
[1745130343993,1.50253041,1606.1,1605.9,3.0]
[1745130344383,0.70263041,1606.1,1605.9,3.0]
[1745130345604,11.15995439,1606.2,1605.9,6.75447185]
[1745130345907,4.13403749,1606.2,1605.9,6.69220776]
[1745130346109,4.13403749,1606.2,1606.1,6.69220776]
[1745130346302,4.13403749,1606.2,1606.1,7.1692206]
[1745130346608,4.13403749,1606.2,1606.1,7.48434696]
[1745130346967,4.13403749,1606.2,1606.1,9.35222567]
[1745130347172,4.13403749,1606.2,1606.1,9.03709931]
[1745130347376,10.35991222,1606.2,1606.1,3.0]
[1745130347668,8.68432094,1606.2,1606.1,3.0]
[1745130347911,8.68432094,1606.2,1606.0,59.493]
[1745130347912,6.22626237,1606.1,1606.0,53.363]
[1745130348213,6.22626237,1606.1,1606.0,56.363]
[1745130348705,7.02616237,1606.1,1606.0,56.40214767]
[1745130361729,19.32894291,1606.2,1606.0,56.40214767]
[1745130361935,13.10277472,1606.2,1606.0,56.40214767]
[1745130362822,19.32902354,1606.2,1606.0,56.40214767]
[1745130363022,13.10277472,1606.2,1606.0,56.40214767]
[1745130363222,13.10277472,1606.2,1606.1,5.318]
[1745130363528,12.29587472,1606.2,1606.1,5.318]
[1745130364900,6.22587473,1606.2,1606.1,5.318]
[1745130366240,6.22626237,1606.1,1606.0,56.40214767]
[1745130366444,6.22626237,1606.1,1606.0,61.72014767]
[1745130367443,6.06999999,1606.4,1606.1,3.0]
[1745130367608,6.22574833,1606.3,1606.1,3.0]
[1745130368135,18.52073844,1606.4,1606.1,3.0]